bitfinex/quotes_ETHUSD_20260207
["timestamp","ask_amount","ask_price","bid_price","bid_amount"]
[1770447806269,10.06228847,2046.6,2045.1,1.22242101]
[1770447806444,1.06785941,2046.5,2044.9,1.22254953]
[1770447806642,1.01197448,2046.4,2044.7,2.99059748]
[1770447806945,0.05588493,2046.5,2045.0,1.2224586]
[1770447807138,1.2214188,2046.8,2045.0,2.99059748]
[1770447807359,10.21929218,2046.7,2045.1,1.22242543]
[1770447807572,2.23223142,2046.6,2045.1,1.22242669]
[1770447807773,1.01069326,2046.5,2045.0,4.21304607]
[1770447807946,1.01069326,2046.4,2045.1,0.42130461]
[1770447808268,1.22153816,2046.6,2045.1,3.41190209]
[1770447808767,1.22153816,2046.6,2045.1,3.46778702]
[1770447809473,1.22171724,2046.3,2045.1,0.42130461]
[1770447809649,1.22171724,2046.3,2045.0,1.22249378]
[1770447809859,0.05588493,2046.1,2044.9,1.22255348]
[1770447810158,10.27203123,2046.3,2045.0,1.22249132]
[1770447810370,9.05031399,2045.8,2044.6,0.22644812]
[1770447810559,10.5717925,2046.2,2044.6,0.22644812]
[1770447810759,1.52147851,2046.2,2045.1,1.22242865]
[1770447811070,1.22171724,2046.3,2045.0,1.22248882]
[1770447811286,0.05588493,2045.9,2044.6,0.22644812]
[1770447811446,1.22213531,2045.6,2044.6,0.22644812]
[1770447811771,1.22213531,2045.6,2044.6,0.16644812]
[1770447811959,1.22213531,2045.6,2044.6,1.38916898]
[1770447812143,0.61106766,2045.5,2045.2,0.001]
[1770447812344,1.22211528,2045.7,2045.2,0.001]
[1770447812750,1.22183666,2046.1,2045.2,0.001]
[1770447814065,9.05031399,2045.8,2044.6,0.79447758]
[1770447814263,0.15828493,2045.7,2044.6,0.10644812]
[1770447814466,9.05031399,2045.4,2043.7,3.11922478]
[1770447814688,12.18374935,2045.4,2044.0,4.89234726]
[1770447814890,1.21837493,2045.3,2044.2,1.22291771]
[1770447815080,9.05031399,2045.4,2044.1,0.48923473]
[1770447815277,3.13343536,2045.6,2044.1,1.22301778]
[1770447815466,0.1024,2045.7,2044.1,4.89206454]
[1770447815667,1.22213531,2045.6,2043.8,7.88320475]
[1770447815999,1.22213531,2045.6,2044.0,3.05319868]
[1770447817295,5.138,2045.5,2044.0,3.05319868]
[1770447817591,0.63601353,2045.4,2044.1,0.42763505]
[1770447817806,1.22231457,2045.3,2044.2,1.22297231]
[1770447818104,7.97240214,2046.0,2044.1,4.70382862]
[1770447818272,7.97240214,2046.0,2044.2,3.05319868]
[1770447818596,4.88806334,2046.0,2044.3,3.10908361]
[1770447818804,0.97761267,2045.9,2044.4,0.31090836]
[1770447819475,4.88806334,2046.1,2044.4,3.36410704]
[1770447819874,4.88806334,2046.1,2044.6,3.05319868]
[1770447820507,4.88806334,2046.1,2044.5,1.22279285]
[1770447820682,1.22183666,2046.2,2044.6,3.05319868]
[1770447820865,1.01086787,2046.1,2044.6,3.05319868]
[1770447821067,3.14022373,2045.9,2044.7,0.42759915]
[1770447821265,3.14022373,2045.9,2044.4,0.31090836]
[1770447821266,1.11320152,2045.8,2044.4,1.53374456]
[1770447821473,1.27772159,2046.2,2044.4,1.53374456]
[1770447821474,1.01080152,2045.7,2044.4,4.58694285]
[1770447821673,0.05588493,2045.9,2044.4,0.31090836]
[1770447821893,0.05588493,2045.5,2044.1,0.42763505]
[1770447822096,1.01133766,2045.4,2044.1,0.42763505]
[1770447822307,0.05588493,2045.2,2044.1,0.42763505]
[1770447822500,0.05588493,2045.2,2043.9,1.22313307]
[1770447822813,9.05031399,2045.3,2043.9,1.22313307]
[1770447822814,9.05031399,2045.3,2043.9,1.22310814]
[1770447823022,1.01235095,2045.2,2043.9,1.22310814]
[1770447823190,0.05588493,2045.5,2043.2,1.22355529]
[1770447823191,9.05031399,2044.3,2043.2,1.22355529]
[1770447823389,9.35505401,2045.1,2043.7,1.22322651]
[1770447823719,1.01298666,2045.0,2043.7,0.05588493]
[1770447824031,1.22255367,2044.9,2044.0,0.05588493]
[1770447824317,0.61127683,2044.8,2044.0,0.05588493]
[1770447824521,1.22255367,2044.9,2044.0,0.05588493]
[1770447824684,1.22255367,2044.9,2043.8,0.05588493]
[1770447824889,1.22255367,2044.9,2044.0,0.05588493]
[1770447825114,4.94517724,2045.3,2043.8,3.05319868]
[1770447825311,4.94517724,2045.3,2043.9,0.001]
[1770447825312,0.05588493,2045.0,2043.9,0.001]
[1770447825516,1.01381088,2044.9,2043.9,0.42874686]
[1770447825687,1.01381088,2044.8,2043.9,0.42874686]
[1770447825906,1.22267325,2044.7,2043.9,0.001]
[1770447828019,4.89129694,2045.3,2043.9,0.001]
[1770447828210,1.01318025,2045.2,2043.9,0.001]
[1770447828408,1.01318025,2045.1,2043.9,0.001]
[1770447828612,4.89129694,2045.3,2043.9,0.001]
[1770447828613,0.002,2045.3,2043.9,3.11008361]
[1770447828955,0.002,2045.3,2044.1,3.05319868]
[1770447829107,1.01308621,2045.2,2044.1,3.05319868]
[1770447829296,0.002,2045.3,2044.0,3.48652764]
[1770447829798,0.002,2045.3,2044.2,3.05319868]
[1770447830799,1.01341996,2045.2,2044.0,0.43332896]
[1770447831120,1.01341996,2045.1,2043.9,1.22414575]
[1770447831326,1.01341996,2045.0,2043.9,1.22414575]
[1770447831524,1.01429966,2044.9,2043.9,0.001]
[1770447831826,0.002,2045.3,2043.9,7.94680214]
[1770447832123,0.002,2045.3,2043.9,4.27735049]
[1770447832124,1.01439453,2045.2,2043.9,4.27735049]
[1770447832331,1.01439453,2045.1,2044.0,3.97021382]
[1770447832507,0.002,2045.3,2044.0,3.97021382]
[1770447832696,1.01555192,2045.2,2044.0,3.97021382]
[1770447832895,0.002,2045.3,2044.0,3.97021382]
[1770447833093,1.01541015,2045.2,2044.1,3.05319868]
[1770447833293,0.002,2045.3,2044.2,3.45022006]
[1770447833924,0.002,2045.3,2044.3,4.27611116]
[1770447834251,0.002,2045.5,2044.7,3.05319868]
[1770447835112,0.002,2045.5,2044.4,3.05319868]
[1770447835538,1.01757324,2045.4,2044.4,3.05319868]
[1770447835742,1.01757324,2045.3,2044.5,0.42761112]
[1770447835929,0.002,2045.5,2044.6,1.22273305]
[1770447836115,1.01759244,2045.4,2044.5,0.42761112]
[1770447836314,1.01794129,2045.3,2044.5,0.42761112]
[1770447836520,0.002,2045.5,2044.5,1.65039692]
[1770447836730,1.01798082,2045.4,2044.6,0.8613055]
[1770447837039,1.01798082,2045.3,2044.6,0.8613055]
[1770447837252,0.002,2045.5,2044.6,0.8613055]
[1770447837426,1.01824639,2045.4,2044.6,0.8613055]
[1770447837626,0.002,2045.5,2044.7,3.05319868]
[1770447837825,4.61125853,2046.1,2044.9,3.05319868]
[1770447838026,1.01852493,2046.0,2044.9,4.27571548]
[1770447838352,1.01852493,2045.9,2044.9,4.27571548]
[1770447838529,1.01852493,2045.8,2045.0,3.05319868]
[1770447838734,1.22171724,2046.3,2045.0,3.05319868]
[1770447838935,1.01913404,2046.2,2045.1,0.42757155]
[1770447839140,0.002,2045.3,2045.1,0.42757155]
[1770447839452,1.22171724,2046.3,2045.1,0.42757155]
[1770447839656,1.01974403,2046.2,2045.1,3.48077023]
[1770447839827,1.01974403,2046.1,2045.4,3.05319868]
[1770447840031,1.22157579,2046.6,2045.6,3.05319868]
[1770447840253,1.02006213,2046.5,2045.6,3.05319868]
[1770447840452,1.02006213,2046.4,2045.6,3.10908361]
[1770447840758,0.002,2047.0,2045.6,3.05319868]
[1770447840998,0.002,2047.0,2045.9,3.05319868]
[1770447841252,1.22330673,2047.0,2045.9,3.05319868]
[1770447841755,0.002,2047.0,2046.4,3.10908361]
[1770447841942,1.22058392,2048.2,2046.6,3.05319868]
[1770447842146,9.05031399,2047.9,2046.7,0.42747965]
[1770447842341,9.05031399,2047.9,2046.4,4.27483534]
[1770447842536,9.05031399,2047.9,2046.5,3.05319868]
[1770447842947,9.05031399,2047.9,2046.4,1.22163666]
[1770447843363,9.05031399,2047.9,2046.5,3.05319868]
[1770447843561,0.6440769,2048.1,2046.6,3.48068221]
[1770447844146,1.22070312,2048.0,2046.8,3.10908361]
[1770447844348,4.8823357,2048.5,2046.8,3.10908361]
[1770447844554,1.22046475,2048.4,2047.1,3.10908361]
[1770447845580,1.2203456,2048.6,2047.3,0.5]
[1770447845881,1.5151949,2048.5,2047.3,0.5]
[1770447846271,2.73565105,2048.5,2047.4,1.22106085]
[1770447846782,2.73565105,2048.5,2047.2,1.22117772]
[1770447846951,2.73565105,2048.5,2047.3,1.22109784]
[1770447847578,2.73565105,2048.5,2047.0,1.22124068]
[1770447847775,1.11019468,2048.4,2047.3,1.22111556]
[1770447847974,0.76170588,2048.4,2047.3,1.22111556]
[1770447848286,0.76170588,2048.4,2047.2,4.884482]
[1770447848287,2.73565105,2048.5,2047.2,4.884482]
[1770447848507,2.73565105,2048.5,2047.2,1.22118014]
[1770447848658,2.73565105,2048.5,2047.2,1.27706507]
[1770447849379,1.22009062,2049.1,2047.9,3.2029041]
[1770447849556,1.22009062,2049.1,2047.5,3.25878903]
[1770447850373,4.8821913,2049.2,2047.5,3.25878903]
[1770447850374,4.8821913,2049.2,2047.6,4.42384569]
[1770447850658,4.8821913,2049.2,2047.7,3.2029041]
[1770447850859,0.97623826,2049.1,2047.8,0.44238457]
[1770447851061,3.92170463,2049.1,2047.6,1.22094159]
[1770447851376,0.97623826,2049.1,2047.6,1.22094159]
[1770447851602,0.97623826,2049.1,2047.6,4.42384569]
[1770447851900,0.002,2049.2,2048.0,3.25878903]
[1770447852058,0.104815,2049.5,2048.7,3.25878903]
[1770447852274,0.002,2049.9,2049.0,1.22010736]
[1770447852614,0.002,2049.9,2049.0,4.47889639]
[1770447852906,0.002,2049.9,2049.1,3.2029041]
[1770447853074,0.002,2049.9,2049.2,3.65079374]
[1770447853278,0.002,2049.4,2049.2,3.65079374]
[1770447853474,0.002,2049.9,2049.2,3.65079374]
[1770447854490,0.002,2049.9,2049.2,4.87072871]
[1770447855002,0.002,2049.9,2048.6,4.88120793]
[1770447855197,0.3484888,2049.8,2048.4,4.88184886]
[1770447855401,0.002,2049.9,2048.6,4.8813287]
[1770447855716,0.002,2049.9,2048.7,0.05588493]
[1770447856020,0.002,2049.9,2048.5,1.22039605]
[1770447856216,0.002,2049.9,2048.5,0.44233002]
[1770447856381,9.10619892,2049.5,2047.9,1.22075659]
[1770447856576,1.21986923,2049.4,2047.5,1.54]
[1770447856798,1.21986923,2049.4,2047.6,1.22094145]
[1770447856799,4.1653356,2049.4,2047.6,1.22094145]
[1770447857075,4.1653356,2049.4,2047.7,0.5]
[1770447857278,0.05588493,2049.2,2047.7,0.5]
[1770447857483,0.47800698,2049.2,2047.7,0.5]
[1770447857679,0.47800698,2049.2,2047.6,1.22094145]
[1770447858320,0.47800698,2049.2,2047.6,1.22093334]
[1770447858487,1.22004782,2049.1,2047.5,4.88398833]
[1770447858686,1.22004782,2049.1,2047.2,4.8856494]
[1770447858687,0.05588493,2048.6,2047.2,0.001]
[1770447858911,1.71966653,2048.6,2047.4,1.22105845]
[1770447859130,1.71966653,2048.6,2047.2,0.001]
[1770447859425,1.22004782,2049.1,2047.4,1.22104798]
[1770447859714,1.22004782,2049.1,2047.6,3.25878903]
[1770447859880,1.21975019,2049.6,2047.9,0.05588493]
[1770447860083,1.02444989,2049.5,2048.2,0.05588493]
[1770447860318,1.02444989,2049.5,2048.2,3.25878903]
[1770447860517,1.21986923,2049.4,2047.8,1.22082234]
[1770447860886,1.21986923,2049.4,2047.7,4.42374291]
[1770447861083,1.52142624,2049.3,2047.8,0.93633191]
[1770447861282,1.52142624,2049.3,2047.7,1.22087857]
[1770447861283,10.54617499,2049.3,2047.7,1.22087857]
[1770447861618,1.52142624,2049.3,2047.7,4.4796676]
[1770447861987,1.52142624,2049.3,2047.7,1.22087857]
[1770447861988,10.54617499,2049.3,2047.7,1.22087857]
[1770447862300,10.54617499,2049.3,2047.4,4.88419435]
[1770447862500,0.05588493,2049.1,2047.5,1.22096543]
[1770447862700,1.22010736,2049.0,2047.3,1.2211205]
[1770447863022,0.61564218,2048.9,2047.4,0.93095066]
[1770447864196,9.02474875,2048.6,2047.2,0.001]
[1770447864508,11.97021512,2048.6,2047.2,0.001]
[1770447864710,3.0013513,2048.4,2047.2,0.001]
[1770447864919,2.94546637,2048.4,2047.2,0.001]
[1770447865509,1.22040517,2048.5,2047.2,0.001]
[1770447866199,2.31876982,2048.5,2047.2,0.001]
[1770447866541,0.05588493,2048.3,2047.2,0.001]
[1770447866706,2.22809533,2048.2,2047.2,0.001]
[1770447867028,1.22058392,2048.2,2047.2,0.001]
[1770447867232,1.00947047,2048.1,2047.2,0.001]
[1770447867452,1.22058392,2048.2,2047.2,0.001]
[1770447867638,1.63571511,2048.1,2047.2,0.001]
[1770447867837,10.09017491,2048.0,2047.2,0.001]
[1770447868051,9.08063368,2048.0,2047.2,0.001]
[1770447868250,1.01125194,2047.9,2047.0,0.001]
[1770447868463,1.22032004,2048.7,2047.1,3.25878903]
[1770447868760,4.88114414,2048.8,2047.3,1.2211205]
[1770447869251,0.002,2049.2,2047.7,0.05588493]
[1770447869429,1.22198931,2049.2,2048.0,0.05588493]
[1770447869953,1.2215871,2049.9,2048.7,3.25878903]
[1770447870155,0.002,2049.9,2048.8,0.38176383]
[1770447870318,1.2215969,2049.9,2047.8,3.2029041]
[1770447870521,1.2215969,2049.9,2048.0,0.05588493]
[1770447870746,1.2215969,2049.9,2048.1,1.22064352]
[1770447870948,1.2215969,2049.9,2047.8,8.08606969]
[1770447870949,0.05588493,2049.7,2047.9,1.22072226]
[1770447871130,0.05588493,2049.7,2048.0,1.22070294]
[1770447871330,0.05588493,2049.4,2048.0,0.93068937]
[1770447871528,3.0013513,2049.4,2047.6,1.22090114]
[1770447871918,3.0013513,2049.4,2047.7,1.22088125]
[1770447872227,3.0013513,2049.4,2047.5,4.88394566]
[1770447872228,3.0013513,2049.4,2047.6,1.22090939]
[1770447872566,2.94546637,2049.4,2047.2,3.2029041]
[1770447872736,1.21992875,2049.3,2047.5,1.22100122]
[1770447873044,0.90451101,2049.2,2047.6,0.9363927]
[1770447874762,0.90451101,2049.2,2047.8,4.42372644]
[1770447874941,1.22002223,2049.2,2047.8,4.42372644]
[1770447876951,4.87902548,2049.6,2047.8,4.42372644]
[1770447877125,0.05588493,2049.3,2047.8,1.22081361]
[1770447877326,12.94729311,2049.3,2047.7,1.22084529]
[1770447877539,1.29472931,2049.2,2047.8,1.8312694]
[1770447877958,1.29472931,2049.2,2047.8,0.61045271]
[1770447878263,1.29472931,2049.2,2047.8,0.61145271]
[1770447878445,1.29472931,2049.2,2047.8,0.001]
[1770447878645,3.08646362,2049.1,2047.8,0.001]
[1770447878965,1.22010736,2049.0,2047.8,0.001]
[1770447879155,4.36245591,2049.0,2047.8,0.001]
[1770447879365,15.9778718,2048.8,2047.8,0.001]
[1770447879660,1.59778718,2048.7,2047.8,0.001]
[1770447879840,1.65367211,2048.7,2047.8,0.001]
[1770447880040,1.59778718,2048.7,2047.8,0.001]
[1770447880357,1.59778718,2048.7,2047.5,0.001]
[1770447880358,12.89140818,2048.5,2047.5,0.001]
[1770447880564,0.1024,2048.4,2047.5,0.001]
[1770447880855,3.08646362,2048.6,2047.5,0.001]
[1770447881040,1.22022647,2048.8,2047.5,0.001]
[1770447881746,15.9778718,2048.5,2046.8,1.22136529]
[1770447881950,1.59778718,2048.4,2046.8,1.22136529]
[1770447882257,3.14234855,2048.4,2046.8,1.22136529]
[1770447882464,15.9778718,2048.4,2046.8,1.22136529]
[1770447882833,3.08646362,2048.4,2046.8,1.22136529]
[1770447883033,1.22052433,2048.3,2046.7,4.88576197]
[1770447884262,1.22052433,2048.3,2046.7,1.22147847]
[1770447884557,5.39648162,2048.2,2046.6,1.22150265]
[1770447884759,3.14234855,2047.9,2046.1,0.001]
[1770447884960,0.05588493,2047.3,2046.1,0.001]
[1770447885163,0.05588493,2047.3,2044.9,4.94593445]
[1770447885164,12.89140818,2046.7,2045.1,3.14801781]
[1770447885467,1.22118014,2047.2,2045.6,1.22212736]
[1770447885674,0.05588493,2047.0,2045.6,0.61106686]
[1770447885837,0.05588493,2047.0,2045.1,3.14801781]
[1770447885838,0.2335703,2046.9,2045.3,1.22231004]
[1770447886039,0.1024,2047.0,2045.6,1.22212034]
[1770447886264,0.61617857,2047.1,2045.6,1.22212034]
[1770447886573,1.22118014,2047.2,2045.6,4.42602308]
[1770447886753,1.22118014,2047.2,2045.7,3.14801781]
[1770447886962,1.22118014,2047.2,2045.9,0.05588493]
[1770447887351,1.22088196,2047.7,2046.0,4.36991419]
[1770447887557,1.22088196,2047.7,2045.6,0.05588493]
[1770447887558,3.24474855,2047.4,2045.6,1.2221248]
[1770447887855,0.1024,2047.1,2045.4,4.88897966]
[1770447888061,13.04969311,2047.1,2045.6,1.22212846]
[1770447888438,13.04969311,2047.1,2045.5,1.22218922]
[1770447888967,1.61361567,2047.3,2045.0,4.94581293]
[1770447888968,1.61361567,2047.3,2045.9,1.2219148]
[1770447889180,1.22088196,2047.7,2045.9,1.22195353]
[1770447889359,0.05588493,2048.6,2045.4,4.94474677]
[1770447889360,1.22022647,2048.8,2046.7,4.36949628]
[1770447889564,15.9778718,2048.4,2047.0,0.05588493]
[1770447889764,1.59778718,2048.3,2047.6,0.05588493]
[1770447889968,1.59778718,2048.3,2047.0,0.05588493]
[1770447890664,1.59778718,2048.3,2046.7,3.14801781]
[1770447890872,0.1024,2048.6,2046.9,0.05588493]
[1770447891252,1.22046475,2048.4,2046.8,1.22140757]
[1770447891449,1.22046475,2048.4,2045.7,4.94406954]
[1770447891450,15.9778718,2047.9,2046.2,1.22177248]
[1770447891771,0.2335703,2047.7,2045.9,1.22191236]
[1770447891972,15.9778718,2047.5,2045.8,1.27789748]
[1770447892192,3.08646362,2047.3,2045.1,3.413]
[1770447892352,1.59778718,2047.4,2045.2,1.278223]
[1770447892353,12.89140818,2046.5,2045.2,1.278223]
[1770447892666,12.89140818,2046.5,2045.1,1.22242365]
[1770447892879,13.22737848,2046.9,2045.1,1.22242365]
[1770447893047,12.99380818,2046.9,2046.1,0.001]
[1770447893252,1.22147847,2046.7,2046.1,0.001]
[1770447894552,4.88591391,2046.8,2046.1,0.001]
[1770447894553,1.22145848,2046.8,2046.1,0.001]
[1770447894953,4.88498286,2047.1,2046.1,0.001]
[1770447895367,1.2211205,2047.3,2046.1,0.001]
[1770447896597,8.02680362,2047.1,2046.1,0.001]
[1770447896753,12.89140818,2046.1,2044.6,1.22268186]
[1770447897169,0.05588493,2045.9,2044.6,1.22271988]
[1770447897376,0.05588493,2045.9,2044.4,4.89138267]
[1770447897377,1.22189638,2046.0,2044.1,4.89205994]
[1770447897696,1.22189638,2046.0,2044.0,4.37104995]
[1770447897697,12.99380818,2045.7,2043.5,3.20390274]
[1770447897885,0.1024,2045.5,2044.0,1.22309117]
[1770447898194,0.1024,2045.5,2043.8,4.94869523]
[1770447898391,0.3359703,2045.9,2044.0,1.22307064]
[1770447898688,0.1024,2045.8,2044.0,1.22307064]
[1770447898991,1.22189638,2046.0,2044.5,0.05588493]
[1770447899188,2.20873537,2045.9,2044.2,0.05588493]
[1770447899890,1.22201583,2045.8,2044.3,1.22291248]
[1770447900196,7.09679871,2045.9,2044.8,0.05588493]
[1770447900197,3.43071986,2045.9,2044.8,0.05588493]
[1770447900402,1.22198449,2045.9,2044.2,1.27881548]
[1770447900562,1.22198449,2045.9,2044.5,0.05588493]
[1770447900763,1.22198449,2045.9,2044.2,4.42683329]
[1770447901497,1.22198449,2045.9,2044.5,0.05588493]
[1770447901661,2.32174782,2045.9,2044.5,0.05588493]
[1770447901863,4.88782442,2046.1,2044.6,1.22273305]
[1770447902062,4.88782442,2046.2,2044.8,0.05588493]
[1770447902560,4.88634583,2046.6,2045.1,0.05588493]
[1770447903397,1.22153816,2046.7,2045.1,0.05588493]
[1770447903398,1.22153816,2046.7,2045.4,0.05588493]
[1770447903909,1.32346085,2047.4,2045.7,0.05588493]
[1770447904075,1.4317269,2047.3,2045.7,3.20390274]
[1770447904385,1.22106085,2047.4,2045.7,0.05588493]
[1770447904588,14.11246903,2047.4,2045.5,4.37021287]
[1770447904814,3.08646362,2048.2,2046.8,0.05588493]
[1770447905010,0.002,2048.1,2047.1,0.05588493]
[1770447905189,0.002,2048.1,2046.9,0.05588493]
[1770447905810,0.002,2048.1,2046.9,2.94584417]
[1770447906108,0.002,2048.1,2047.0,1.51585359]
[1770447906706,0.002,2048.1,2047.0,0.29458442]
[1770447906915,0.002,2048.1,2047.1,1.2212398]
[1770447907078,0.002,2048.1,2047.0,1.22126025]
[1770447907885,0.002,2048.1,2046.9,4.88523112]
[1770447908211,0.002,2048.1,2047.1,0.05588493]
[1770447908587,0.002,2048.1,2047.1,2.94584417]
[1770447908789,0.002,2048.1,2047.2,0.29458442]
[1770447909486,0.002,2048.1,2046.9,4.88523112]
[1770447909487,0.002,2048.1,2046.8,1.2772631]
[1770447909797,0.002,2048.1,2046.6,3.00643399]
[1770447910001,0.002,2048.1,2046.7,1.22147065]
[1770447910201,0.002,2048.1,2046.0,3.00643399]
[1770447910516,0.002,2048.1,2045.6,4.9909074]
[1770447910517,0.002,2048.1,2046.6,1.22149859]
[1770447910820,1.29154082,2048.1,2046.5,1.22156131]
[1770447910980,1.29154082,2048.1,2046.5,1.22158842]
[1770447911186,1.29154082,2048.1,2046.6,1.22152173]
[1770447911388,0.002,2048.1,2046.7,0.05588493]
[1770447912114,1.22264352,2048.1,2047.1,0.05588493]
[1770447912306,0.002,2048.1,2046.9,3.00643399]
[1770447912509,0.002,2048.1,2046.2,0.05588493]
[1770447912695,1.90183647,2048.1,2046.4,1.22162265]
[1770447912891,12.89140818,2047.7,2045.9,3.00643399]
[1770447913103,12.89140818,2047.7,2045.4,0.05588493]
[1770447913104,12.89140818,2047.7,2045.7,0.05588493]
[1770447913315,12.89140818,2047.7,2045.5,1.22217533]
[1770447913316,12.89140818,2047.2,2045.5,1.22217533]
[1770447913616,3.10144538,2047.1,2045.0,4.88988067]
[1770447913824,4.59833074,2047.0,2045.1,2.01762316]
[1770447914035,1.59928536,2047.0,2045.2,3.00643399]
[1770447914319,4.88543651,2047.0,2045.3,1.2781995]
[1770447914523,4.88543651,2047.0,2045.3,0.05588493]
[1770447914689,4.88543651,2047.0,2044.8,4.94627006]
[1770447914690,2.99904538,2046.9,2044.9,4.89004613]
[1770447914890,2.99904538,2046.9,2045.2,1.22236441]
[1770447915115,2.99904538,2046.9,2045.2,1.2223693]
[1770447915418,0.78844819,2046.8,2045.7,0.05588493]
[1770447915802,4.88543651,2047.0,2045.7,0.05588493]
[1770447916316,4.88519785,2047.2,2045.5,3.00643399]
[1770447916486,4.88519785,2047.2,2045.5,7.89516996]
[1770447916694,4.88519785,2047.2,2045.7,1.27795016]
[1770447916906,4.88514394,2047.3,2046.0,0.05588493]
[1770447917217,0.61062644,2047.2,2046.0,0.05588493]
[1770447917421,0.61062644,2047.2,2046.3,0.05588493]
[1770447917727,4.88514394,2047.3,2046.3,0.05588493]
[1770447917896,4.88514394,2047.3,2045.7,0.05588493]
[1770447918529,4.88514394,2047.3,2045.4,0.05588493]
[1770447918530,4.88514394,2047.3,2045.9,0.001]
[1770447919025,4.88514394,2047.3,2045.7,0.001]
[1770447919026,3.10144538,2047.2,2045.7,0.001]
[1770447919551,15.89045356,2047.0,2045.7,0.001]
[1770447919696,1.58904536,2046.9,2045.7,0.001]
[1770447920396,1.2214188,2046.8,2045.7,0.001]
[1770447920722,1.2214188,2046.8,2043.8,5.145]
[1770447920723,2.99904538,2045.8,2044.4,0.001]
[1770447920898,12.89140818,2045.5,2044.4,0.001]
[1770447921091,1.58904536,2045.4,2044.4,0.001]
[1770447921290,2.99904538,2045.6,2044.4,0.001]
[1770447921691,0.1024,2045.2,2043.6,0.32039027]
[1770447921917,0.1024,2045.2,2043.6,1.22329828]
[1770447922221,0.1024,2045.2,2043.3,0.003]
[1770447922394,1.22249388,2045.0,2043.3,4.89687448]
[1770447922595,1.22249388,2045.0,2043.4,0.05588493]
[1770447922935,1.22249388,2045.0,2043.7,0.05588493]
[1770447923103,2.32273838,2045.0,2043.7,0.05588493]
[1770447923294,2.32273838,2045.0,2043.3,1.22651098]
[1770447923494,2.32273838,2045.0,2043.3,0.003]
[1770447923495,2.99904538,2044.7,2043.3,0.003]
[1770447924404,1.22273305,2044.6,2043.3,0.003]
[1770447925222,4.89093221,2044.9,2043.4,0.05588493]
[1770447925223,1.22255367,2044.9,2043.4,0.05588493]
[1770447925522,0.72130129,2044.8,2043.5,0.05588493]
[1770447925729,0.72130129,2044.8,2043.3,0.003]
[1770447925730,0.5,2044.5,2043.3,0.003]
[1770447926618,1.45642297,2044.4,2043.3,0.003]
[1770447926814,0.1024,2044.3,2043.3,0.003]
[1770447927014,14.39421893,2044.4,2041.9,4.89739222]
[1770447927015,0.1024,2043.6,2041.9,4.89739222]
[1770447927224,0.43590157,2043.6,2042.2,1.2241547]
[1770447927425,0.43590157,2043.6,2042.1,1.22418913]
[1770447927630,0.43590157,2043.6,2042.0,4.89714879]
[1770447927960,0.33350157,2043.6,2042.1,0.05588493]
[1770447928255,0.1024,2044.1,2042.5,1.22395136]
[1770447928425,0.1024,2044.1,2042.3,1.2240743]
[1770447928622,20.12291526,2043.9,2042.1,1.22422456]
[1770447928838,2.99904538,2043.8,2042.1,1.22422456]
[1770447929043,2.99904538,2043.8,2042.1,1.22421533]
[1770447929227,1.61704116,2043.7,2042.0,1.22424651]
[1770447929422,2.99904538,2043.6,2041.4,4.95433773]
[1770447929629,1.61704116,2043.7,2041.4,4.95433773]
[1770447929630,15.93684134,2043.5,2041.9,1.22431474]
[1770447929823,15.93684134,2043.5,2042.0,1.22428137]
[1770447930144,15.93684134,2043.5,2041.8,1.22439696]
[1770447930315,1.59368413,2043.4,2042.0,1.2242487]
[1770447930517,1.22351098,2043.3,2041.8,4.23084382]
[1770447930716,0.5,2043.3,2042.3,3.06231892]
[1770447930947,0.5,2043.3,2041.8,4.23084382]
[1770447931178,0.5,2043.3,2041.9,0.91844748]
[1770447931456,0.5,2043.3,2042.3,0.001]
[1770447931671,2.99904538,2043.0,2041.2,1.22472746]
[1770447931949,2.99904538,2043.0,2041.4,0.05588493]
[1770447932238,0.29990454,2042.9,2042.0,0.001]
[1770447932456,0.5,2043.3,2042.0,0.001]
[1770447932659,1.22351668,2043.3,2042.0,0.001]
[1770447932833,0.05588493,2043.2,2042.0,0.001]
[1770447933154,0.1024,2043.0,2042.0,0.001]
[1770447933353,0.05588493,2042.6,2041.0,0.00833659]
[1770447933544,1.35525302,2042.6,2041.3,1.22467432]
[1770447933743,1.29936809,2042.6,2041.0,0.00833659]
[1770447933959,3.15733031,2042.5,2041.0,0.00833659]
[1770447934150,3.15733031,2042.5,2041.0,1.23318524]
[1770447934333,2.99904538,2042.5,2041.0,0.00833659]
[1770447934532,1.22405013,2042.4,2041.0,1.23321999]
[1770447934727,1.22405013,2042.4,2041.0,1.23322325]
[1770447934952,4.22309551,2042.4,2041.0,0.00833659]
[1770447935337,12.99368089,2042.3,2041.0,0.00833659]
[1770447935529,2.012154,2042.2,2041.0,0.00833659]
[1770447935734,0.05588493,2042.0,2041.0,0.00833659]
[1770447936131,2.00058349,2042.1,2041.0,0.00833659]
[1770447936359,0.5,2042.1,2041.0,0.00833659]
[1770447936550,1.72428183,2042.1,2041.0,1.23322139]
[1770447936754,1.72428183,2042.1,2041.0,0.00833659]
[1770447937064,1.72428183,2042.1,2041.0,1.23322518]
[1770447937262,1.72428183,2042.1,2041.0,0.00833659]
[1770447937467,1.72428183,2042.1,2041.0,1.23322243]
[1770447937638,1.72424765,2042.1,2041.1,0.62222805]
[1770447938039,0.5,2042.1,2041.1,0.62222805]
[1770447938468,1.72424056,2042.1,2041.1,0.62222805]
[1770447938694,1.22381045,2042.8,2041.2,1.22476974]
[1770447939178,1.22381045,2042.8,2041.3,0.05588493]
[1770447939469,13.83445318,2042.7,2041.3,0.68020161]
[1770447939768,0.2335703,2042.4,2041.0,0.00833659]
[1770447939974,12.93779596,2042.6,2041.1,1.22482028]
[1770447940182,14.44362232,2042.6,2041.2,0.61324759]
[1770447940478,0.1024,2042.7,2041.2,0.61324759]
[1770447940776,0.5,2042.4,2041.2,1.89385842]
[1770447940976,0.5,2042.4,2041.3,0.67931166]
[1770447941657,0.5,2042.4,2041.2,1.22476713]
[1770447941986,0.5,2042.4,2041.0,8.01926875]
[1770447942287,0.5,2042.4,2041.0,3.11972753]
[1770447942499,0.5,2042.4,2041.0,1.23318928]
[1770447942793,1.22411007,2042.3,2041.0,0.00833659]
[1770447942956,2.37580913,2042.3,2041.0,0.00833659]
[1770447943657,2.37580913,2042.3,2040.0,3.11139094]
[1770447943658,12.93779596,2041.8,2040.0,3.11139094]
[1770447943882,2.43169406,2042.3,2040.9,1.22491172]
[1770447943883,2.37580913,2042.3,2040.9,1.22491172]
[1770447944058,13.7150209,2042.2,2040.6,3.11139094]
[1770447944259,2.84751992,2042.0,2040.1,3.11139094]
[1770447944499,12.93779596,2041.8,2040.3,1.22528288]